bitfinex/quotes_SOLUSD_20241001
["timestamp","ask_amount","ask_price","bid_price","bid_amount"]
[1727750404746,1.62403644,153.96,153.89,6.498]
[1727750404946,1.62418935,153.95,153.89,6.498]
[1727750405951,6.4956,153.95,153.9,31.5738348]
[1727750406147,6.4956,153.95,153.9,7.7969508]
[1727750408755,6.4956,153.95,153.91,23.776884]
[1727750408940,6.4956,153.95,153.92,1.29916103]
[1727750415250,6.2904,153.99,153.93,23.776884]
[1727750415457,8.4936,154.0,153.95,6.4955]
[1727750415754,8.4936,154.0,153.96,7.7933743]
[1727750415958,8.4936,154.0,153.96,1.2982743]
[1727750416559,2.0,154.0,153.96,7.7930743]
[1727750416735,2.0,154.0,153.96,1.2982743]
[1727750417134,2.0,154.0,153.97,30.271584]
[1727750417333,2.0,154.0,153.98,1.29779241]
[1727750417559,2.0,154.0,153.98,7.79199241]
[1727750419649,2.0,154.0,153.98,6.4942]
[1727750420164,2.0,154.0,153.97,23.776884]
[1727750420343,2.0,154.0,153.97,30.271584]
[1727750425676,2.0,154.0,153.97,23.776884]
[1727750425982,2.0,154.0,153.98,6.4943]
[1727750427057,2.0,154.0,153.97,30.271584]
[1727750428062,2.0,154.0,153.99,6.4939]
[1727750428271,2.0,154.0,153.99,30.270784]
[1727750433691,2.0,154.0,153.98,6.4942]
[1727750435091,2.0,154.0,153.99,1.29738547]
[1727750436281,2.0,154.0,153.99,31.56816947]
[1727750436486,2.0,154.0,153.99,30.270784]
[1727750437289,2.0,154.0,153.99,31.56768241]
[1727750440884,2.0,154.0,153.99,30.270784]
[1727750444076,2.0,154.0,153.99,31.5676796]
[1727750446583,2.0,154.0,153.99,30.270784]
[1727750447392,2.0,154.0,153.99,31.5676805]
[1727750447970,2.0,154.0,153.99,30.270784]
[1727750448377,2.0,154.0,153.99,31.56768272]
[1727750448571,2.0,154.0,153.99,30.270784]
[1727750451594,2.0,154.0,153.98,6.4942]
[1727750451797,2.0,154.0,153.96,22.732]
[1727750451979,8.4936,154.0,153.96,16.2372]
[1727750452992,6.4939,153.99,153.95,6.4955]
[1727750455775,8.4935,154.0,153.96,1.29834882]
[1727750455983,2.0,154.0,153.96,7.79344882]
[1727750456293,2.0,154.0,153.96,6.4951]
[1727750458994,2.0,154.0,153.97,7.79249578]
[1727750460199,2.0,154.0,153.98,1.29789255]
[1727750461498,2.0,154.0,153.97,6.4946]
[1727750463208,2.0,154.0,153.98,1.29758237]
[1727750467393,2.0,154.0,153.97,6.4946]
[1727750467708,2.0,154.0,153.98,1.2975948]
[1727750469804,2.0,154.0,153.99,31.56794827]
[1727750470834,2.0,154.0,153.99,30.270784]
[1727750471307,2.0,154.0,153.99,6.4939]
[1727750471813,2.0,154.0,153.97,22.7305]
[1727750472019,2.0,154.0,153.98,7.79161049]
[1727750474714,2.0,154.0,153.99,30.270784]
[1727750478799,2.0,154.0,153.99,6.4939]
[1727750483338,2.0,154.0,153.99,30.270784]
[1727750483911,2.0,154.0,153.99,43.25471828]
[1727750484109,2.0,154.0,153.99,49.15997504]
[1727750486027,2.0,154.0,153.99,43.25471828]
[1727750486324,2.0,154.0,153.99,49.1571471]
[1727750487022,2.0,154.0,153.99,43.25471828]
[1727750487327,2.0,154.0,153.99,49.1560183]
[1727750490229,2.0,154.0,153.99,43.25471828]
[1727750493932,2.0,154.0,153.99,44.55121785]
[1727750494139,2.0,154.0,153.99,64.55121785]
[1727750495527,2.0,154.0,153.99,64.55085059]
[1727750495744,2.0,154.0,153.99,86.18825059]
[1727750496032,2.0,154.0,153.99,92.08286945]
[1727750497118,2.0,154.0,153.99,86.18825059]
[1727750497536,2.0,154.0,153.99,92.08259366]
[1727750498537,2.0,154.0,153.99,90.78646135]
[1727750502459,2.0,154.0,153.99,84.89211828]
[1727750505544,2.0,154.0,153.99,63.25471828]
[1727750506254,2.0,154.0,153.99,26.4939]
[1727750506926,2.0,154.0,153.99,27.79068728]
[1727750507130,2.0,154.0,153.99,26.4939]
[1727750507460,0.1100858,154.04,154.03,6.4922]
[1727750507665,0.1100858,154.04,154.03,19.47613428]
[1727750508035,0.1100858,154.04,154.03,43.25301828]
[1727750515462,0.1100858,154.04,154.03,46.92422105]
[1727750517660,0.1100858,154.04,154.03,66.92422105]
[1727750517971,16.417,154.11,154.03,74.80561267]
[1727750518138,16.417,154.11,154.09,6.4893]
[1727750518477,16.417,154.11,154.09,7.78433417]
[1727750518666,16.417,154.11,154.1,6.4892]
[1727750519537,16.417,154.11,154.09,1.29503417]
[1727750519754,16.417,154.11,154.09,7.78463417]
[1727750521246,16.417,154.11,154.09,6.4896]
[1727750528865,16.417,154.11,154.08,22.715]
[1727750529076,16.417,154.11,154.08,16.225]
[1727750529249,24.52827059,154.11,154.05,22.719]
[1727750529447,24.52827059,154.11,154.06,6.4909]
[1727750530349,22.9059,154.11,154.06,6.4909]
[1727750531065,8.11182384,154.1,154.06,6.4909]
[1727750531251,6.1888,154.09,154.02,16.2313]
[1727750531574,1.62283099,154.08,154.02,16.2313]
[1727750532150,6.4905,154.07,154.02,22.7238]
[1727750532376,6.4905,154.07,154.02,16.2313]
[1727750532562,6.4905,154.07,154.03,6.4921]
[1727750533776,8.11293099,154.08,154.03,6.4921]
[1727750537555,6.4901,154.08,154.03,6.4921]
[1727750538757,1.62281207,154.07,154.02,26.39766323]
[1727750538960,6.491,154.06,154.02,19.90506323]
[1727750539159,1.62301216,154.05,154.02,19.90506323]
[1727750539375,22.2079,154.06,154.02,26.39766323]
[1727750539874,22.2079,154.06,154.02,19.90506323]
[1727750540082,1.62303002,154.05,154.02,3.67376323]
[1727750540270,8.11453002,154.05,154.0,6.4934]
[1727750540578,6.4918,154.04,154.0,6.4934]
[1727750541162,6.4914,154.05,154.0,7.7906793]
[1727750541375,1.62309716,154.04,154.0,6.4934]
[1727750541578,1.62309716,154.04,153.99,16.2345]
[1727750541763,6.4914,154.05,154.0,6.4934]
[1727750542184,8.11449736,154.05,154.0,6.4934]
[1727750542382,6.4914,154.05,154.0,6.4934]
[1727750542571,6.4914,154.05,154.0,7.79066092]
[1727750542777,1.62309762,154.04,154.0,6.4934]
[1727750542996,6.4914,154.05,154.0,6.4934]
[1727750543784,8.11449988,154.05,154.0,6.4934]
[1727750544455,15.7169,154.06,154.01,1.29729243]
[1727750544654,15.7169,154.06,154.02,6.4925]
[1727750544863,22.2079,154.06,154.01,7.79029243]
[1727750546081,14.70659827,154.05,154.0,6.4934]
[1727750546964,6.4919,154.04,153.99,22.7283]
[1727750547164,1.62325151,154.03,153.99,22.7283]
[1727750549081,8.11555151,154.03,153.99,16.2345]
[1727750549287,1.62339641,154.02,153.99,16.2345]
[1727750549465,1.62339641,154.02,153.97,6.4946]
[1727750549466,22.5151,154.01,153.97,6.4946]
[1727750549660,1.62353245,154.0,153.92,32.4837]
[1727750549987,6.4941,153.99,153.94,6.4957]
[1727750550509,1.62363195,153.98,153.92,48.725]
[1727750551375,1.62363195,153.98,153.94,6.4956]
[1727750551579,12.9179,153.99,153.94,6.4956]
[1727750552091,2.0,153.95,153.89,7.20519245]
[1727750552278,2.0,153.95,153.92,12.98393428]
[1727750555472,2.0,153.95,153.89,23.776884]
[1727750555670,2.0,153.95,153.92,12.98393428]
[1727750556771,2.0,153.95,153.89,23.776884]
[1727750556979,2.0,153.95,153.91,23.776884]
[1727750562094,2.0,153.92,153.87,20.0]
[1727750562272,2.0,153.92,153.89,12.98393428]
[1727750564079,2.0,153.92,153.87,56.76081828]
[1727750567377,2.0,153.92,153.89,12.98393428]
[1727750571086,2.0,153.92,153.87,56.76081828]
[1727750571393,2.0,153.9,153.87,20.0]
[1727750571600,6.1505,153.94,153.84,15.5129]
[1727750571601,2.0,153.88,153.84,12.98393428]
[1727750573087,2.0,153.88,153.85,23.776884]
[1727750577189,2.0,153.93,153.87,23.776884]
[1727750577386,2.0,153.95,153.91,23.776884]
[1727750588599,2.0,153.95,153.92,12.98393428]
[1727750589512,2.0,153.93,153.9,23.776884]
[1727750589900,2.0,153.93,153.89,12.98393428]
[1727750590605,2.0,153.93,153.88,20.0]
[1727750590606,2.0,153.89,153.86,32.98393428]
[1727750591613,2.0,153.89,153.86,27.16870632]
[1727750591912,2.0,153.89,153.87,23.776884]
[1727750592888,2.0,153.89,153.86,20.1526406]
[1727750593089,2.0,153.89,153.84,12.98393428]
[1727750593616,2.0,153.89,153.84,20.1526406]
[1727750594308,2.0,153.89,153.85,23.776884]
[1727750594510,2.0,153.89,153.85,36.76081828]
[1727750594700,15.32149556,153.98,153.85,36.76081828]
[1727750594905,15.32149556,153.98,153.85,44.52373582]
[1727750594906,20.0,153.97,153.85,44.52373582]
[1727750595287,20.0,153.97,153.87,16.2469]
[1727750595490,15.32149556,153.98,153.9,6.4977]
[1727750597119,6.4957,153.95,153.9,6.4977]
[1727750597812,21.9076,153.95,153.9,6.4977]
[1727750598619,15.4119,153.95,153.87,12.98393428]
[1727750598789,15.4119,153.95,153.92,6.4968]
[1727750600519,1.62420544,153.94,153.92,6.4968]
[1727750600815,1.62420544,153.94,153.91,6.4972]
[1727750601491,15.4119,153.95,153.91,6.4972]
[1727750604117,15.4119,153.95,153.92,6.4966]
[1727750606517,1.62418655,153.94,153.91,22.7399]
[1727750606906,21.9076,153.95,153.91,22.7399]
[1727750612320,1.62427813,153.94,153.91,16.2427]
[1727750612523,8.12027813,153.94,153.9,6.4976]
[1727750613714,8.12027813,153.94,153.89,6.498]
[1727750613897,6.496,153.94,153.89,6.498]
[1727750614505,6.496,153.94,153.9,6.4976]
[1727750615030,15.4119,153.95,153.9,6.4976]
[1727750615239,21.9076,153.95,153.9,6.4976]
[1727750618013,1.62429702,153.94,153.9,6.4976]
[1727750618713,8.12039702,153.94,153.9,6.4976]
[1727750621226,6.4961,153.94,153.9,6.4976]
[1727750622601,15.4119,153.95,153.88,19.77991291]
[1727750622805,21.9075,153.95,153.91,6.4972]
[1727750632626,1.62424506,153.94,153.89,3.53662546]
[1727750632830,1.62424506,153.94,153.9,6.4976]
[1727750633027,21.9075,153.95,153.9,6.4976]
[1727750636334,21.9075,153.95,153.91,3.5429477]
[1727750636539,21.9075,153.95,153.9,6.4976]
[1727750636738,21.9075,153.95,153.91,3.54294708]
[1727750637029,21.9075,153.95,153.9,6.4976]
[1727750637030,1.62425963,153.94,153.9,6.4976]
[1727750637242,1.62425963,153.94,153.91,3.5428326]
[1727750637417,1.62425963,153.94,153.9,6.4976]
[1727750637622,1.62425963,153.94,153.91,3.54291196]
[1727750637946,1.62425963,153.94,153.9,6.4976]
[1727750638119,1.62425963,153.94,153.91,3.54289267]
[1727750638318,21.9075,153.95,153.9,6.4976]
[1727750638518,21.9075,153.95,153.91,3.54289277]
[1727750638719,21.9075,153.95,153.9,6.4976]
[1727750638920,21.9075,153.95,153.91,3.54285466]
[1727750639120,21.9075,153.95,153.9,6.4976]
[1727750639328,21.9075,153.95,153.91,3.54285528]
[1727750639526,21.9075,153.95,153.9,6.4976]
[1727750639752,21.9075,153.95,153.91,3.54292839]
[1727750639934,21.9075,153.95,153.9,6.4976]
[1727750640235,21.9075,153.95,153.91,3.54292777]
[1727750640442,21.9075,153.95,153.9,6.4976]
[1727750640644,21.9075,153.95,153.91,3.5429803]
[1727750640828,21.9075,153.95,153.9,6.4976]
[1727750642844,21.9075,153.95,153.88,16.2459]
[1727750643143,21.9075,153.95,153.91,6.4972]
[1727750649359,8.12030698,153.94,153.88,16.2459]
[1727750649647,1.62420698,153.94,153.89,7.48899389]
[1727750649949,6.4965,153.93,153.88,22.7443]
[1727750650134,1.624407,153.92,153.88,22.7443]
[1727750650732,1.624407,153.92,153.89,6.4981]
[1727750651844,6.4961,153.94,153.89,6.4981]
[1727750658157,6.4961,153.94,153.9,6.4975]
[1727750671660,15.4119,153.95,153.9,6.4975]
[1727750671661,21.9075,153.95,153.9,6.4975]
[1727750672050,21.9075,153.95,153.91,6.4972]
[1727750674774,15.4119,153.95,153.91,6.4972]
[1727750681148,21.9075,153.95,153.91,6.4972]
[1727750686275,21.9075,153.95,153.9,16.2437]
[1727750686573,8.12025371,153.94,153.9,16.2437]
[1727750687477,6.4974,153.91,153.87,16.2472]
[1727750687656,15.4119,153.95,153.87,22.7461]
[1727750687657,6.4969,153.92,153.87,22.7461]
[1727750695375,6.4965,153.93,153.88,6.4982]
[1727750697177,1.62443747,153.92,153.88,6.4982]
[1727750697685,6.4965,153.93,153.88,6.4982]
[1727750700977,1.62452066,153.92,153.88,6.4982]
[1727750701780,6.4965,153.93,153.88,6.4982]
[1727750705167,15.4119,153.95,153.9,6.4976]
[1727750706176,21.9076,153.95,153.9,6.4976]
[1727750709490,15.4119,153.95,153.9,6.4976]
[1727750709697,6.4968,153.93,153.88,3.5384721]
[1727750709884,1.62459763,153.92,153.87,6.4989]
[1727750710071,1.62459763,153.92,153.86,29.96917643]
[1727750710072,6.4977,153.9,153.86,29.96917643]
[1727750710275,1.62475747,153.89,153.86,22.7473]
[1727750713383,6.4977,153.9,153.86,22.7473]
[1727750714385,6.2699,153.92,153.84,3.53838923]
[1727750714574,6.4985,153.89,153.84,10.03858923]
[1727750714767,1.62477887,153.88,153.84,3.53838923]
[1727750715475,6.4994,153.87,153.84,3.53838923]
[1727750715666,1.62521934,153.86,153.84,3.53838923]
[1727750715872,8.12461934,153.86,153.84,3.53838923]
[1727750716694,1.6252194,153.85,153.84,3.53838923]
[1727750717678,1.6252194,153.85,153.81,6.5014]
[1727750720285,6.4994,153.86,153.81,6.5014]
[1727750721199,6.5266,153.87,153.83,6.5006]
[1727750721600,6.5266,153.87,153.81,16.2528]
[1727750721801,1.62511151,153.86,153.82,6.501]
[1727750722492,13.0256,153.87,153.82,6.501]
[1727750723076,8.12462945,153.86,153.82,6.501]
[1727750723801,6.4994,153.86,153.82,6.501]
[1727750726405,1.62522514,153.85,153.82,6.501]
[1727750727297,6.4994,153.86,153.82,6.501]
[1727750727806,1.62522597,153.85,153.82,6.501]
[1727750729301,6.4994,153.86,153.82,6.501]
[1727750731310,1.62522406,153.85,153.82,6.501]
[1727750732095,1.62522406,153.85,153.81,22.7542]
[1727750735913,6.4994,153.86,153.81,22.7542]
[1727750738305,1.62522106,153.85,153.81,22.7542]
[1727750738694,6.4994,153.86,153.81,22.7542]
[1727750738889,13.0256,153.87,153.83,6.5006]
[1727750739105,15.4257,153.9,153.83,6.5006]
[1727750740197,6.4986,153.88,153.83,6.5006]
[1727750740394,1.62505299,153.87,153.83,6.5006]
[1727750740892,8.12405299,153.87,153.83,6.5006]
[1727750741312,1.6250536,153.86,153.83,6.5006]
[1727750741690,6.499,153.87,153.83,6.5006]
[1727750742317,6.4986,153.88,153.83,6.5006]
[1727750742496,6.4981,153.89,153.84,6.5002]
[1727750745196,1.62495145,153.88,153.84,6.5002]
[1727750745413,1.62495145,153.88,153.83,22.7513]
[1727750746891,6.4986,153.88,153.83,22.7513]
[1727750748504,1.62499471,153.87,153.83,22.7513]
[1727750749219,6.4986,153.88,153.83,22.7513]
[1727750750315,1.62499406,153.87,153.83,22.7513]
[1727750750516,21.9238,153.9,153.84,6.5]
[1727750751613,6.4983,153.89,153.84,6.5]
[1727750753208,1.62494021,153.88,153.84,6.5]
[1727750753790,8.12354021,153.88,153.84,6.5]
[1727750754226,1.62494155,153.87,153.84,6.5]
[1727750755696,1.62494155,153.87,153.83,22.7513]
[1727750757514,6.4981,153.89,153.84,6.5002]
[1727750757727,22.38275636,153.94,153.85,16.2489]
[1727750758017,15.6048,153.94,153.87,6.4986]
[1727750759112,15.6048,153.94,153.88,6.4981]
[1727750759508,15.6048,153.94,153.87,16.2468]
[1727750759721,6.4969,153.92,153.87,22.7457]
[1727750764726,1.62460589,153.91,153.87,22.7457]
[1727750764904,1.62460589,153.91,153.86,6.4993]
[1727750765110,6.4981,153.9,153.84,22.7503]
[1727750765316,8.12284562,153.9,153.85,36.4997]
[1727750765517,1.62474451,153.89,153.85,36.4997]
[1727750766532,6.4981,153.9,153.85,36.4997]
[1727750767119,6.4981,153.9,153.86,6.4993]
[1727750767324,6.4981,153.9,153.87,30.0]
[1727750768931,6.4973,153.91,153.87,30.0]
[1727750772026,6.4977,153.9,153.87,30.0]
[1727750772222,1.62473645,153.89,153.87,30.0]
[1727750772427,8.12283645,153.89,153.87,30.0]
[1727750772614,6.4985,153.88,153.87,30.0]
[1727750773626,6.4985,153.88,153.84,16.2504]
[1727750773835,6.4985,153.88,153.85,30.0]
[1727750774132,6.4985,153.88,153.84,16.2504]
[1727750774832,6.4985,153.88,153.78,22.7592]
[1727750774833,6.5007,153.83,153.78,22.7592]
[1727750775129,1.62547333,153.82,153.78,22.7592]
[1727750776030,6.5007,153.83,153.78,22.7592]
[1727750776225,6.5002,153.84,153.79,6.5023]
[1727750776424,1.62540621,153.83,153.79,6.5023]
[1727750779850,1.62540621,153.83,153.78,16.2565]
[1727750780135,6.5007,153.83,153.78,22.7592]
[1727750780338,8.12658889,153.82,153.78,16.2565]
[1727750781238,1.62554613,153.81,153.78,16.2565]
[1727750783542,6.5011,153.82,153.78,16.2565]
[1727750783718,6.5011,153.82,153.78,22.7592]
[1727750784324,6.5007,153.83,153.78,22.7592]
[1727750788623,1.62553755,153.82,153.78,22.7592]
[1727750789544,6.5007,153.83,153.78,22.7592]
[1727750790037,6.5007,153.83,153.78,16.2565]
[1727750790240,8.12615619,153.83,153.79,6.5023]
[1727750790825,6.5007,153.83,153.79,6.5023]
[1727750792727,1.62547014,153.82,153.79,6.5023]
[1727750793526,6.5007,153.83,153.79,6.5023]
[1727750794147,1.62546954,153.82,153.79,6.5023]
[1727750794928,6.5007,153.83,153.79,6.5023]
[1727750795649,8.1261691,153.83,153.79,6.5023]
[1727750797448,6.5018,153.81,153.76,6.5033]
[1727750797651,1.62581748,153.8,153.75,16.26]
[1727750797946,6.5028,153.78,153.73,6.5048]
[1727750798173,1.62595096,153.77,153.73,6.5048]
[1727750799829,1.62595096,153.77,153.72,16.2628]
[1727750800136,1.62595096,153.77,153.74,6.5044]
[1727750804248,8.12915096,153.77,153.72,22.7677]
[1727750804436,8.12915096,153.77,153.72,16.2628]
[1727750804437,1.62595096,153.77,153.72,16.2628]
[1727750804637,6.5037,153.76,153.72,16.2628]
[1727750804844,1.62619907,153.75,153.72,16.2628]
[1727750805850,15.7571,153.78,153.72,16.2628]
[1727750806050,15.7571,153.78,153.74,6.5041]
[1727750806234,23.8858929,153.78,153.72,29.24673428]
[1727750806438,23.8858929,153.78,153.73,6.5047]
[1727750811357,6.5036,153.77,153.72,22.768]
[1727750811538,8.1300959,153.76,153.72,16.2628]
[1727750811963,6.5041,153.75,153.7,6.5057]
[1727750812150,1.62634435,153.74,153.7,6.5057]
[1727750812356,6.5041,153.75,153.7,6.5057]
[1727750812545,1.62632271,153.74,153.7,6.5057]
[1727750813660,1.62632271,153.74,153.71,6.5056]
[1727750813962,6.5041,153.75,153.71,6.5056]
[1727750814161,1.6263218,153.74,153.71,6.5056]
[1727750814557,6.5041,153.75,153.71,6.5056]
[1727750814965,6.5037,153.76,153.71,6.5056]
[1727750817743,1.62631652,153.75,153.71,6.5056]
[1727750818169,6.5037,153.76,153.71,6.5056]
[1727750819245,6.5037,153.76,153.63,6.26760867]
[1727750819246,6.206,153.75,153.6,15.7897]
[1727750819445,15.7886,153.73,153.67,6.5074]
[1727750819652,6.5057,153.71,153.66,16.2694]
[1727750819966,6.5057,153.71,153.66,22.7772]
[1727750819967,1.62678775,153.7,153.66,22.7772]
[1727750820452,1.62678775,153.7,153.66,16.2694]
[1727750820638,8.13298775,153.7,153.66,16.2694]
[1727750820842,6.5062,153.7,153.66,16.2694]
[1727750821643,1.62686411,153.69,153.66,16.2694]
[1727750823566,6.5057,153.71,153.66,22.7772]
[1727750825472,6.5057,153.71,153.67,6.5073]
[1727750825653,19.48125051,153.75,153.7,6.5061]
[1727750825853,1.6264223,153.74,153.7,6.5061]
[1727750826054,8.1309223,153.74,153.7,6.5061]
[1727750826667,8.1309223,153.74,153.68,16.2669]
[1727750826965,8.1309223,153.74,153.69,6.5065]
[1727750827161,6.5049,153.73,153.69,6.5065]
[1727750827371,1.62642622,153.72,153.65,22.7785]
[1727750827568,6.5062,153.7,153.65,16.2704]
[1727750827759,1.62676487,153.69,153.66,6.5078]
[1727750827961,1.62676487,153.69,153.65,22.7786]
[1727750828350,8.13336487,153.69,153.65,16.2704]
[1727750828750,1.62698154,153.68,153.65,16.2704]
[1727750832161,1.62698024,153.69,153.65,16.2704]
[1727750833981,16.3955,153.72,153.67,6.507]
[1727750834147,6.5052,153.73,153.68,6.507]
[1727750835568,8.13197104,153.72,153.67,6.5074]
[1727750836071,8.13197104,153.72,153.61,49.6095796]
[1727750836072,6.507,153.68,153.64,6.5086]
[1727750836376,15.7727,153.71,153.64,6.5086]
[1727750837162,1.62698645,153.7,153.63,6.5091]
[1727750838182,6.507,153.68,153.63,6.5091]
[1727750838488,8.13454285,153.67,153.62,22.7832]
[1727750839359,6.5074,153.67,153.62,22.7832]
[1727750839561,6.507,153.68,153.63,6.509]
[1727750839961,6.2798,153.7,153.62,16.2737]
[1727750840271,6.5066,153.69,153.64,6.5086]
[1727750841585,6.2798,153.7,153.64,6.5086]
[1727750841586,8.13398068,153.68,153.64,6.5086]
[1727750841757,6.507,153.68,153.64,6.5086]
[1727750841956,6.2798,153.7,153.62,16.2737]
[1727750842174,22.2788,153.71,153.66,6.5078]
[1727750843466,1.62686308,153.7,153.65,16.2707]
[1727750843663,8.13306308,153.7,153.65,22.7789]
[1727750844680,15.7727,153.71,153.65,16.2707]
[1727750844878,22.2784,153.71,153.66,6.5077]
[1727750845464,22.2784,153.71,153.65,16.2707]
[1727750845670,22.2784,153.71,153.67,6.5074]
[1727750845869,15.7727,153.71,153.67,6.5074]
[1727750846477,6.5053,153.72,153.67,6.5074]
[1727750847269,6.0226,153.74,153.65,12.98393428]
[1727750847469,12.5271,153.74,153.69,6.5065]
[1727750848961,6.505,153.73,153.68,6.5069]
[1727750852058,6.0226,153.74,153.67,22.7752]
[1727750852257,1.62666229,153.73,153.67,16.2679]
[1727750852469,1.62666229,153.73,153.64,16.2713]
[1727750852688,6.507,153.68,153.64,16.2713]
[1727750852856,6.507,153.68,153.64,22.7799]
[1727750853185,6.507,153.68,153.64,16.2713]
[1727750853760,1.62700635,153.67,153.64,16.2713]
[1727750854263,6.507,153.68,153.64,16.2713]
[1727750856092,6.507,153.68,153.62,6.5095]
[1727750856093,8.13439966,153.67,153.62,6.5095]
[1727750857870,1.62721875,153.67,153.61,17.1064796]
[1727750858075,22.6729,153.68,153.63,6.509]
[1727750858383,8.13447654,153.67,153.63,6.509]
[1727750862385,8.13447654,153.67,153.62,6.5095]
[1727750862564,6.5079,153.66,153.62,6.5095]
[1727750862766,8.1351186,153.66,153.62,6.5095]
[1727750863890,6.5079,153.66,153.62,6.5095]
[1727750864059,1.62721154,153.65,153.62,6.5095]
[1727750864261,1.62721154,153.65,153.61,23.6163796]
[1727750866380,8.13551154,153.65,153.61,23.6163796]
[1727750866694,1.62734601,153.64,153.61,23.6163796]
[1727750866882,1.62734601,153.64,153.61,17.1064796]
[1727750867785,6.5083,153.65,153.61,17.1064796]
[1727750867982,6.5078,153.66,153.61,23.6160796]
[1727750868171,22.554,153.68,153.62,6.5095]
[1727750869087,6.5075,153.67,153.62,6.5095]
[1727750869468,1.62719338,153.66,153.62,6.5095]
[1727750870262,8.13509338,153.66,153.61,17.1064796]
[1727750870486,1.62720247,153.65,153.61,23.6163796]
[1727750877092,6.5079,153.66,153.61,23.6163796]
[1727750877266,22.554,153.68,153.61,17.1064796]
[1727750877267,6.5075,153.67,153.61,17.1064796]
[1727750877464,29.0611,153.68,153.63,6.5091]
[1727750877686,28.58846271,153.72,153.64,29.25563428]
[1727750877890,6.5058,153.71,153.66,6.5077]
[1727750878198,6.5058,153.71,153.67,6.5074]
[1727750878873,6.5058,153.71,153.66,6.5078]
[1727750881400,1.6267167,153.7,153.66,6.5078]
[1727750884092,6.5062,153.7,153.66,6.5078]
[1727750884288,1.62674589,153.69,153.66,6.5078]
[1727750885977,8.13294456,153.7,153.66,6.5078]
[1727750886394,6.5069,153.69,153.64,16.2717]
[1727750886599,1.62692454,153.68,153.64,22.7803]
[1727750886780,8.13402454,153.68,153.64,22.7803]
[1727750886980,6.5071,153.68,153.64,22.7803]
[1727750887178,8.13443043,153.67,153.62,3.53972784]
[1727750887396,6.5075,153.67,153.62,3.53972784]
[1727750887588,6.5075,153.67,153.63,6.5091]
[1727750891802,1.62703761,153.66,153.63,6.5091]
[1727750892792,6.5075,153.67,153.63,6.5091]
[1727750893606,6.5078,153.66,153.62,6.5095]
[1727750893793,22.8086,153.67,153.62,6.5095]
[1727750896007,22.8086,153.67,153.63,6.509]
[1727750896709,16.3011,153.67,153.63,6.509]
[1727750896997,22.0162,153.71,153.66,6.5078]
[1727750897703,23.64291973,153.71,153.66,6.5078]
[1727750904317,6.5288,153.72,153.65,16.27]
[1727750904318,6.5054,153.72,153.68,6.5069]
[1727750905191,6.5054,153.72,153.67,6.5073]
[1727750905502,8.13228203,153.71,153.67,6.5073]
[1727750905704,6.5057,153.71,153.67,6.5073]
[1727750911224,6.5054,153.72,153.67,6.5073]
[1727750912313,8.13228228,153.71,153.67,6.5073]
[1727750912516,6.5057,153.71,153.67,6.5073]
[1727750915918,6.5057,153.71,153.65,29.25393428]
[1727750916121,6.5057,153.71,153.66,6.5077]
[1727750925236,1.62657758,153.7,153.63,15.2819]
[1727750925404,6.5077,153.67,153.63,15.2819]
[1727750925912,6.5071,153.68,153.63,21.791]
[1727750926115,1.62686667,153.72,153.63,21.791]
[1727750926319,6.5075,153.67,153.63,21.791]
[1727750926802,6.5075,153.67,153.63,15.2819]
[1727750927412,6.5075,153.67,153.63,21.7909]
[1727750927620,20.0,153.72,153.64,6.5086]
[1727750927827,16.2629,153.73,153.64,16.2709]
[1727750927828,6.5062,153.7,153.64,16.2709]
[1727750928027,6.5062,153.7,153.65,6.5082]
[1727750928244,6.5066,153.69,153.65,6.5082]
[1727750929008,6.5062,153.7,153.65,6.5082]